[Event "Titled Tuesday Blitz May 2 Late 2023"]
[White "Seletsky, Grigory"]
[Black "Quirke, Jeffrey"]
[WhiteFideId "14112191"]
[BlackFideId "2013029"]
[WhiteElo "2490"]
[BlackElo "2007"]
[Result "1-0"]
[Round "02"]
[TimeControl "180+2"]
[Date "2023.05.02"]
[WhiteClock "0:01:45"]
[BlackClock "0:00:16"]

1. a3 {[%clk 0:02:55]}  g6 {[%clk 0:02:58]} 2. d4 {[%clk 0:02:53]}  Bg7 {[%clk 0:02:59]} 3. c4 {[%clk 0:02:53]}  d6 {[%clk 0:02:56]} 4. Nc3 {[%clk 0:02:53]}  c5 {[%clk 0:02:52]} 5. dxc5 {[%clk 0:02:51]}  Bxc3+ {[%clk 0:02:48]} 6. bxc3 {[%clk 0:02:50]}  dxc5 {[%clk 0:02:48]} 7. Qxd8+ {[%clk 0:02:49]}  Kxd8 {[%clk 0:02:48]} 8. e4 {[%clk 0:02:49]}  Nf6 {[%clk 0:02:44]} 9. f3 {[%clk 0:02:47]}  Nc6 {[%clk 0:02:43]} 10. Be3 {[%clk 0:02:44]}  b6 {[%clk 0:02:42]} 11. O-O-O+ {[%clk 0:02:41]}  Ke8 {[%clk 0:02:36]} 12. Ne2 {[%clk 0:02:40]}  Ba6 {[%clk 0:02:34]} 13. Nf4 {[%clk 0:02:40]}  e6 {[%clk 0:02:30]} 14. h4 {[%clk 0:02:25]}  h5 {[%clk 0:02:27]} 15. Be2 {[%clk 0:02:19]}  Ne5 {[%clk 0:02:13]} 16. Rd2 {[%clk 0:02:12]}  Ke7 {[%clk 0:02:07]} 17. Nh3 {[%clk 0:02:05]}  Bxc4 {[%clk 0:01:53]} 18. Bg5 {[%clk 0:02:02]}  Bxe2 {[%clk 0:01:00]} 19. f4 {[%clk 0:02:00]}  Nd3+ {[%clk 0:00:57]} 20. Kc2 {[%clk 0:01:55]}  e5 {[%clk 0:00:29]} 21. Rxe2 {[%clk 0:01:53]}  c4 {[%clk 0:00:24]} 22. fxe5 {[%clk 0:01:51]}  Nxe5 {[%clk 0:00:23]} 23. Rf1 {[%clk 0:01:51]}  Ng4 {[%clk 0:00:16]} 24. e5 {[%clk 0:01:45]} 1-0


[Site "https://www.chess.com"]

[Event "Titled Tuesday Blitz May 2 Late 2023"]
[White "Kalaiyalahan, Akshaya"]
[Black "Foerster-Yialamas, Lucas"]
[WhiteFideId "422894"]
[BlackFideId "30901774"]
[WhiteElo "2043"]
[BlackElo "2067"]
[Result "1/2-1/2"]
[Round "02"]
[TimeControl "180+2"]
[Date "2023.05.02"]
[WhiteClock "0:00:10"]
[BlackClock "0:01:18"]

1. b3 {[%clk 0:02:30]}  e5 {[%clk 0:02:57]} 2. Bb2 {[%clk 0:02:29]}  Nc6 {[%clk 0:02:57]} 3. e3 {[%clk 0:02:29]}  a6 {[%clk 0:02:56]} 4. c4 {[%clk 0:02:28]}  Nf6 {[%clk 0:02:56]} 5. Nc3 {[%clk 0:02:28]}  d5 {[%clk 0:02:55]} 6. cxd5 {[%clk 0:02:26]}  Nxd5 {[%clk 0:02:56]} 7. Nf3 {[%clk 0:02:14]}  f6 {[%clk 0:02:56]} 8. Bc4 {[%clk 0:02:09]}  Be6 {[%clk 0:02:55]} 9. O-O {[%clk 0:01:59]}  Qd7 {[%clk 0:02:55]} 10. d4 {[%clk 0:01:56]}  exd4 {[%clk 0:02:53]} 11. Nxd4 {[%clk 0:01:51]}  Nxd4 {[%clk 0:02:53]} 12. Qxd4 {[%clk 0:01:48]}  Nxc3 {[%clk 0:02:44]} 13. Qxc3 {[%clk 0:01:48]}  O-O-O {[%clk 0:02:42]} 14. Rac1 {[%clk 0:01:44]}  Bd6 {[%clk 0:02:42]} 15. Ba3 {[%clk 0:01:40]}  Be5 {[%clk 0:02:35]} 16. Bxe6 {[%clk 0:01:36]}  Qxe6 {[%clk 0:02:34]} 17. Qc2 {[%clk 0:01:34]}  Rd7 {[%clk 0:02:34]} 18. f4 {[%clk 0:01:23]}  Bd6 {[%clk 0:02:33]} 19. Bxd6 {[%clk 0:01:19]}  Qxd6 {[%clk 0:02:34]} 20. Rfd1 {[%clk 0:01:15]}  Qe6 {[%clk 0:02:29]} 21. Rxd7 {[%clk 0:01:04]}  Qxd7 {[%clk 0:02:30]} 22. Rd1 {[%clk 0:00:58]}  Qe6 {[%clk 0:02:26]} 23. e4 {[%clk 0:00:58]}  Rd8 {[%clk 0:02:20]} 24. Rxd8+ {[%clk 0:00:55]}  Kxd8 {[%clk 0:02:21]} 25. Qd3+ {[%clk 0:00:54]}  Qd6 {[%clk 0:02:20]} 26. Qxd6+ {[%clk 0:00:54]}  cxd6 {[%clk 0:02:21]} 27. Kf2 {[%clk 0:00:54]}  Kd7 {[%clk 0:02:21]} 28. Ke3 {[%clk 0:00:54]}  Kc6 {[%clk 0:02:20]} 29. Kd4 {[%clk 0:00:54]}  b6 {[%clk 0:02:15]} 30. h3 {[%clk 0:00:48]}  g6 {[%clk 0:02:15]} 31. g3 {[%clk 0:00:48]}  h5 {[%clk 0:02:15]} 32. g4 {[%clk 0:00:41]}  h4 {[%clk 0:02:14]} 33. g5 {[%clk 0:00:39]}  fxg5 {[%clk 0:02:11]} 34. fxg5 {[%clk 0:00:40]}  a5 {[%clk 0:02:03]} 35. a4 {[%clk 0:00:36]}  Kc7 {[%clk 0:01:57]} 36. Kd5 {[%clk 0:00:36]}  Kd7 {[%clk 0:01:57]} 37. e5 {[%clk 0:00:25]}  dxe5 {[%clk 0:01:58]} 38. Kxe5 {[%clk 0:00:25]}  Ke7 {[%clk 0:01:59]} 39. Kf4 {[%clk 0:00:23]}  Kd6 {[%clk 0:01:54]} 40. Kg4 {[%clk 0:00:23]}  Ke5 {[%clk 0:01:54]} 41. Kxh4 {[%clk 0:00:24]}  Kf5 {[%clk 0:01:54]} 42. Kg3 {[%clk 0:00:23]}  Kxg5 {[%clk 0:01:55]} 43. h4+ {[%clk 0:00:22]}  Kf5 {[%clk 0:01:48]} 44. Kf3 {[%clk 0:00:22]}  Ke5 {[%clk 0:01:47]} 45. Ke3 {[%clk 0:00:21]}  Kf5 {[%clk 0:01:47]} 46. Kf3 {[%clk 0:00:21]}  Kf6 {[%clk 0:01:43]} 47. Kf4 {[%clk 0:00:21]}  Kg7 {[%clk 0:01:42]} 48. Kg5 {[%clk 0:00:19]}  Kf7 {[%clk 0:01:42]} 49. Kg4 {[%clk 0:00:17]}  Kf6 {[%clk 0:01:41]} 50. Kf4 {[%clk 0:00:17]}  Kg7 {[%clk 0:01:19]} 51. Kg5 {[%clk 0:00:12]}  Kh7 {[%clk 0:01:19]} 52. Kf4 {[%clk 0:00:10]}  Kh6 {[%clk 0:01:18]} 53. Kg4 {[%clk 0:00:10]} 1/2-1/2


[Site "https://www.chess.com"]

[Event "Titled Tuesday Blitz May 2 Late 2023"]
[White "Gutkin, Ilya"]
[Black "Chemin, Justo Reinaldo"]
[WhiteFideId "16203470"]
[BlackFideId "2101580"]
[WhiteElo "2265"]
[BlackElo "1940"]
[Result "1-0"]
[Round "02"]
[TimeControl "180+2"]
[Date "2023.05.02"]
[WhiteClock "0:01:31"]
[BlackClock "0:00:05"]

1. e4 {[%clk 0:03:00]}  e5 {[%clk 0:00:04]} 2. Nf3 {[%clk 0:02:58]}  d6 {[%clk 0:00:05]} 3. d4 {[%clk 0:02:55]}  exd4 {[%clk 0:00:05]} 4. Nxd4 {[%clk 0:02:55]}  Nc6 {[%clk 0:00:05]} 5. Nc3 {[%clk 0:02:53]}  Bd7 {[%clk 0:00:06]} 6. Nf3 {[%clk 0:02:51]}  Nf6 {[%clk 0:00:06]} 7. Bc4 {[%clk 0:02:48]}  Be7 {[%clk 0:00:06]} 8. O-O {[%clk 0:02:47]}  O-O {[%clk 0:00:07]} 9. h3 {[%clk 0:02:47]}  Ne5 {[%clk 0:00:07]} 10. Be2 {[%clk 0:02:45]}  Ng6 {[%clk 0:00:06]} 11. Be3 {[%clk 0:02:34]}  Re8 {[%clk 0:00:07]} 12. Nd4 {[%clk 0:02:33]}  Bf8 {[%clk 0:00:06]} 13. Qd3 {[%clk 0:02:27]}  a6 {[%clk 0:00:07]} 14. f4 {[%clk 0:02:27]}  c5 {[%clk 0:00:06]} 15. Nf5 {[%clk 0:01:39]}  Bc6 {[%clk 0:00:06]} 16. Bf3 {[%clk 0:01:37]}  b5 {[%clk 0:00:06]} 17. Rad1 {[%clk 0:01:34]}  c4 {[%clk 0:00:05]} 18. Qd4 {[%clk 0:01:31]} 1-0


[Site "https://www.chess.com"]

[Event "Titled Tuesday Blitz May 2 Late 2023"]
[White "Berg, Olaf"]
[Black "Fuentes Godoy, Lilia Ivonne"]
[WhiteFideId "7200420"]
[BlackFideId "5104130"]
[WhiteElo "2269"]
[BlackElo "2096"]
[Result "1-0"]
[Round "02"]
[TimeControl "180+2"]
[Date "2023.05.02"]
[WhiteClock "0:00:44"]
[BlackClock "0:00:08"]

1. e4 {[%clk 0:03:00]}  c5 {[%clk 0:02:58]} 2. Nf3 {[%clk 0:03:00]}  Nc6 {[%clk 0:02:57]} 3. Bb5 {[%clk 0:03:00]}  g6 {[%clk 0:02:29]} 4. Bxc6 {[%clk 0:03:00]}  bxc6 {[%clk 0:02:28]} 5. O-O {[%clk 0:03:00]}  Bg7 {[%clk 0:02:28]} 6. d3 {[%clk 0:03:00]}  e6 {[%clk 0:02:28]} 7. Nc3 {[%clk 0:02:59]}  Ne7 {[%clk 0:02:29]} 8. Be3 {[%clk 0:03:00]}  d6 {[%clk 0:02:25]} 9. e5 {[%clk 0:02:55]}  Nd5 {[%clk 0:02:24]} 10. Ne4 {[%clk 0:02:49]}  Nxe3 {[%clk 0:02:17]} 11. fxe3 {[%clk 0:02:49]}  dxe5 {[%clk 0:02:13]} 12. Nxc5 {[%clk 0:02:39]}  Qb6 {[%clk 0:02:11]} 13. d4 {[%clk 0:02:20]}  exd4 {[%clk 0:02:07]} 14. exd4 {[%clk 0:02:21]}  O-O {[%clk 0:02:03]} 15. Kh1 {[%clk 0:02:14]}  Qxb2 {[%clk 0:01:38]} 16. Qd2 {[%clk 0:02:11]}  Qb5 {[%clk 0:01:08]} 17. Rab1 {[%clk 0:02:06]}  Qc4 {[%clk 0:01:08]} 18. c3 {[%clk 0:02:02]}  a5 {[%clk 0:01:06]} 19. Ng5 {[%clk 0:01:54]}  e5 {[%clk 0:00:52]} 20. Nce4 {[%clk 0:01:35]}  exd4 {[%clk 0:00:35]} 21. cxd4 {[%clk 0:01:34]}  Bf5 {[%clk 0:00:31]} 22. Nd6 {[%clk 0:01:09]}  Qxd4 {[%clk 0:00:27]} 23. Qxd4 {[%clk 0:01:03]}  Bxd4 {[%clk 0:00:28]} 24. Nxf5 {[%clk 0:01:03]}  gxf5 {[%clk 0:00:26]} 25. Rxf5 {[%clk 0:01:04]}  Rab8 {[%clk 0:00:18]} 26. Rbf1 {[%clk 0:01:03]}  Rb5 {[%clk 0:00:15]} 27. Nxf7 {[%clk 0:00:54]}  Rxf5 {[%clk 0:00:14]} 28. Nh6+ {[%clk 0:00:55]}  Kg7 {[%clk 0:00:13]} 29. Nxf5+ {[%clk 0:00:55]}  Kh8 {[%clk 0:00:12]} 30. g4 {[%clk 0:00:53]}  c5 {[%clk 0:00:12]} 31. Kg2 {[%clk 0:00:52]}  Bb2 {[%clk 0:00:11]} 32. Rf4 {[%clk 0:00:48]}  Rc8 {[%clk 0:00:09]} 33. Rc4 {[%clk 0:00:48]}  a4 {[%clk 0:00:08]} 34. Kf3 {[%clk 0:00:46]}  a3 {[%clk 0:00:08]} 35. h4 {[%clk 0:00:46]}  Rd8 {[%clk 0:00:08]} 36. Rxc5 {[%clk 0:00:45]}  Rd3+ {[%clk 0:00:08]} 37. Ke4 {[%clk 0:00:45]}  Rd1 {[%clk 0:00:08]} 38. Rc8+ {[%clk 0:00:44]} 1-0


[Site "https://www.chess.com"]

[Event "Titled Tuesday Blitz May 2 Late 2023"]
[White "Hartikainen, Jarmo"]
[Black "Sai Han Thiha"]
[WhiteFideId "503134"]
[BlackFideId "13012290"]
[WhiteElo "2108"]
[BlackElo "1954"]
[Result "0-1"]
[Round "02"]
[TimeControl "180+2"]
[Date "2023.05.02"]
[WhiteClock "0:00:02"]
[BlackClock "0:00:04"]

1. e4 {[%clk 0:03:00]}  c6 {[%clk 0:03:00]} 2. d4 {[%clk 0:03:00]}  d5 {[%clk 0:03:01]} 3. Nc3 {[%clk 0:03:00]}  dxe4 {[%clk 0:03:01]} 4. Nxe4 {[%clk 0:03:01]}  Nf6 {[%clk 0:03:02]} 5. Nxf6+ {[%clk 0:03:01]}  exf6 {[%clk 0:03:03]} 6. Bf4 {[%clk 0:03:01]}  Bd6 {[%clk 0:03:04]} 7. Qf3 {[%clk 0:03:01]}  O-O {[%clk 0:02:58]} 8. Bd3 {[%clk 0:03:01]}  Be6 {[%clk 0:02:30]} 9. Ne2 {[%clk 0:02:53]}  Bd5 {[%clk 0:02:28]} 10. Qg3 {[%clk 0:02:52]}  Bxf4 {[%clk 0:02:21]} 11. Nxf4 {[%clk 0:02:51]}  Re8+ {[%clk 0:02:20]} 12. Kf1 {[%clk 0:02:50]}  Qd6 {[%clk 0:01:38]} 13. h4 {[%clk 0:02:39]}  Nd7 {[%clk 0:01:29]} 14. h5 {[%clk 0:02:37]}  Be4 {[%clk 0:01:20]} 15. Rh4 {[%clk 0:01:31]}  f5 {[%clk 0:00:57]} 16. h6 {[%clk 0:01:24]}  g6 {[%clk 0:00:54]} 17. Rd1 {[%clk 0:01:17]}  Bxd3+ {[%clk 0:00:49]} 18. Rxd3 {[%clk 0:00:58]}  Qb4 {[%clk 0:00:32]} 19. c3 {[%clk 0:00:22]}  Qxb2 {[%clk 0:00:32]} 20. Rd1 {[%clk 0:00:15]}  Nf6 {[%clk 0:00:21]} 21. Kg1 {[%clk 0:00:14]}  Ne4 {[%clk 0:00:18]} 22. Qf3 {[%clk 0:00:14]}  Qxc3 {[%clk 0:00:15]} 23. Qxc3 {[%clk 0:00:12]}  Nxc3 {[%clk 0:00:15]} 24. Rd2 {[%clk 0:00:11]}  Rad8 {[%clk 0:00:13]} 25. Rh3 {[%clk 0:00:10]}  Ne4 {[%clk 0:00:12]} 26. Rd1 {[%clk 0:00:10]}  Ng5 {[%clk 0:00:10]} 27. Ra3 {[%clk 0:00:09]}  a6 {[%clk 0:00:10]} 28. Rb3 {[%clk 0:00:09]}  Re7 {[%clk 0:00:09]} 29. a4 {[%clk 0:00:09]}  Ne6 {[%clk 0:00:08]} 30. Nxe6 {[%clk 0:00:08]}  fxe6 {[%clk 0:00:08]} 31. Kf1 {[%clk 0:00:08]}  Kf7 {[%clk 0:00:06]} 32. Ke2 {[%clk 0:00:08]}  g5 {[%clk 0:00:06]} 33. Ke3 {[%clk 0:00:07]}  Kg6 {[%clk 0:00:07]} 34. Rdb1 {[%clk 0:00:06]}  Rdd7 {[%clk 0:00:06]} 35. f4 {[%clk 0:00:06]}  Kxh6 {[%clk 0:00:06]} 36. g3 {[%clk 0:00:05]}  Kg6 {[%clk 0:00:06]} 37. Rh1 {[%clk 0:00:05]}  h5 {[%clk 0:00:06]} 38. Rb2 {[%clk 0:00:05]}  a5 {[%clk 0:00:06]} 39. Rbh2 {[%clk 0:00:04]}  Rh7 {[%clk 0:00:06]} 40. Rh3 {[%clk 0:00:03]}  g4 {[%clk 0:00:05]} 41. R3h2 {[%clk 0:00:02]}  b5 {[%clk 0:00:06]} 42. Rc2 {[%clk 0:00:02]}  Rd6 {[%clk 0:00:04]} 43. Rhc1 {[%clk 0:00:02]}  bxa4 {[%clk 0:00:03]} 44. Rxc6 {[%clk 0:00:02]}  Rxc6 {[%clk 0:00:04]} 45. Rxc6 {[%clk 0:00:02]}  Re7 {[%clk 0:00:04]} 46. Rc4 {[%clk 0:00:02]}  a3 {[%clk 0:00:04]} 47. Ra4 {[%clk 0:00:02]}  Rb7 {[%clk 0:00:04]} 48. Rxa3 {[%clk 0:00:02]}  Kf6 {[%clk 0:00:04]} 0-1


[Site "https://www.chess.com"]

[Event "Titled Tuesday Blitz May 2 Late 2023"]
[White "Van Baar, Esper"]
[Black "Golubev, Mikhail"]
[WhiteFideId "1049321"]
[BlackFideId "14100983"]
[WhiteElo "2180"]
[BlackElo "2374"]
[Result "1-0"]
[Round "02"]
[TimeControl "180+2"]
[Date "2023.05.02"]
[WhiteClock "0:00:03"]
[BlackClock "0:00:01"]

1. e4 {[%clk 0:03:00]}  c5 {[%clk 0:02:59]} 2. Nf3 {[%clk 0:03:00]}  d6 {[%clk 0:02:59]} 3. Bb5+ {[%clk 0:03:00]}  Bd7 {[%clk 0:02:59]} 4. Bxd7+ {[%clk 0:03:00]}  Nxd7 {[%clk 0:02:59]} 5. c4 {[%clk 0:03:00]}  g6 {[%clk 0:02:50]} 6. O-O {[%clk 0:02:53]}  Bg7 {[%clk 0:02:49]} 7. Nc3 {[%clk 0:02:44]}  Rc8 {[%clk 0:02:39]} 8. d3 {[%clk 0:02:38]}  Ngf6 {[%clk 0:02:33]} 9. h3 {[%clk 0:02:34]}  O-O {[%clk 0:02:32]} 10. Be3 {[%clk 0:02:34]}  Ne5 {[%clk 0:02:13]} 11. Nxe5 {[%clk 0:02:09]}  dxe5 {[%clk 0:02:14]} 12. Qe2 {[%clk 0:01:45]}  Nd7 {[%clk 0:02:05]} 13. Rab1 {[%clk 0:01:31]}  e6 {[%clk 0:02:01]} 14. a3 {[%clk 0:01:26]}  b6 {[%clk 0:01:55]} 15. b4 {[%clk 0:01:16]}  Qe7 {[%clk 0:01:48]} 16. g3 {[%clk 0:01:09]}  f5 {[%clk 0:01:23]} 17. f3 {[%clk 0:00:49]}  f4 {[%clk 0:01:20]} 18. Bf2 {[%clk 0:00:47]}  fxg3 {[%clk 0:01:16]} 19. Bxg3 {[%clk 0:00:48]}  Bh6 {[%clk 0:01:08]} 20. Kh2 {[%clk 0:00:46]}  Bf4 {[%clk 0:01:07]} 21. Rg1 {[%clk 0:00:33]}  Bxg3+ {[%clk 0:01:00]} 22. Rxg3 {[%clk 0:00:34]}  Rf4 {[%clk 0:01:00]} 23. b5 {[%clk 0:00:34]}  Nf6 {[%clk 0:00:55]} 24. Qe3 {[%clk 0:00:24]}  Nh5 {[%clk 0:00:54]} 25. Rg4 {[%clk 0:00:25]}  Rcf8 {[%clk 0:00:49]} 26. Rxf4 {[%clk 0:00:17]}  exf4 {[%clk 0:00:24]} 27. Qf2 {[%clk 0:00:15]}  Rd8 {[%clk 0:00:21]} 28. Rd1 {[%clk 0:00:15]}  Qf6 {[%clk 0:00:17]} 29. Ne2 {[%clk 0:00:13]}  Qb2 {[%clk 0:00:16]} 30. Kg2 {[%clk 0:00:11]}  Nf6 {[%clk 0:00:13]} 31. d4 {[%clk 0:00:10]}  cxd4 {[%clk 0:00:11]} 32. Nxf4 {[%clk 0:00:09]}  Qxf2+ {[%clk 0:00:09]} 33. Kxf2 {[%clk 0:00:10]}  e5 {[%clk 0:00:09]} 34. Nd5 {[%clk 0:00:08]}  Nxd5 {[%clk 0:00:08]} 35. cxd5 {[%clk 0:00:07]}  Rc8 {[%clk 0:00:08]} 36. Rd2 {[%clk 0:00:06]}  g5 {[%clk 0:00:07]} 37. a4 {[%clk 0:00:06]}  Kf7 {[%clk 0:00:06]} 38. a5 {[%clk 0:00:04]}  bxa5 {[%clk 0:00:05]} 39. Ra2 {[%clk 0:00:04]}  Rc7 {[%clk 0:00:02]} 40. Rxa5 {[%clk 0:00:04]}  Rc2+ {[%clk 0:00:02]} 41. Kg3 {[%clk 0:00:04]}  h5 {[%clk 0:00:01]} 42. h4 {[%clk 0:00:03]} 1-0


[Site "https://www.chess.com"]

[Event "Titled Tuesday Blitz May 2 Late 2023"]
[White "Ricaurte Lopez, Juan Carlos"]
[Black "Liu, Casper"]
[WhiteFideId "3600327"]
[BlackFideId "1454153"]
[WhiteElo "2200"]
[BlackElo "2221"]
[Result "1-0"]
[Round "02"]
[TimeControl "180+2"]
[Date "2023.05.02"]
[WhiteClock "0:00:10"]
[BlackClock "0:00:07"]

1. e4 {[%clk 0:02:57]}  e5 {[%clk 0:02:56]} 2. d4 {[%clk 0:02:56]}  exd4 {[%clk 0:02:56]} 3. c3 {[%clk 0:02:56]}  dxc3 {[%clk 0:02:56]} 4. Nxc3 {[%clk 0:02:56]}  Nc6 {[%clk 0:02:54]} 5. Bc4 {[%clk 0:02:57]}  Ne5 {[%clk 0:02:54]} 6. Bb3 {[%clk 0:02:53]}  d6 {[%clk 0:02:53]} 7. Bf4 {[%clk 0:02:46]}  Ng6 {[%clk 0:02:53]} 8. Bg3 {[%clk 0:02:45]}  Nf6 {[%clk 0:02:46]} 9. h4 {[%clk 0:02:41]}  h5 {[%clk 0:02:46]} 10. e5 {[%clk 0:02:32]}  Nxe5 {[%clk 0:02:00]} 11. Bxe5 {[%clk 0:02:28]}  dxe5 {[%clk 0:02:01]} 12. Bxf7+ {[%clk 0:02:25]}  Ke7 {[%clk 0:02:02]} 13. Qxd8+ {[%clk 0:02:18]}  Kxd8 {[%clk 0:02:01]} 14. O-O-O+ {[%clk 0:02:17]}  Bd6 {[%clk 0:02:02]} 15. Nf3 {[%clk 0:02:13]}  Ke7 {[%clk 0:02:02]} 16. Bg6 {[%clk 0:02:13]}  c6 {[%clk 0:01:59]} 17. Ng5 {[%clk 0:02:12]}  Rh6 {[%clk 0:01:46]} 18. Bc2 {[%clk 0:02:00]}  Bc7 {[%clk 0:01:41]} 19. Rhe1 {[%clk 0:01:57]}  Ne8 {[%clk 0:01:10]} 20. f4 {[%clk 0:01:40]}  Bg4 {[%clk 0:01:09]} 21. Rd2 {[%clk 0:01:33]}  Nf6 {[%clk 0:00:56]} 22. fxe5 {[%clk 0:01:30]}  Nd7 {[%clk 0:00:56]} 23. Rf2 {[%clk 0:01:24]}  Rf8 {[%clk 0:00:49]} 24. Rxf8 {[%clk 0:00:56]}  Nxf8 {[%clk 0:00:42]} 25. Rf1 {[%clk 0:00:52]}  Bxe5 {[%clk 0:00:40]} 26. Rf7+ {[%clk 0:00:51]}  Ke8 {[%clk 0:00:39]} 27. Rxb7 {[%clk 0:00:50]}  Bf4+ {[%clk 0:00:36]} 28. Kb1 {[%clk 0:00:46]}  Bxg5 {[%clk 0:00:36]} 29. hxg5 {[%clk 0:00:45]}  Re6 {[%clk 0:00:37]} 30. b4 {[%clk 0:00:38]}  Re1+ {[%clk 0:00:37]} 31. Kb2 {[%clk 0:00:35]}  Ne6 {[%clk 0:00:38]} 32. Ne4 {[%clk 0:00:21]}  Nd4 {[%clk 0:00:24]} 33. Bd3 {[%clk 0:00:20]}  Rg1 {[%clk 0:00:19]} 34. Kc3 {[%clk 0:00:20]}  Nf5 {[%clk 0:00:17]} 35. Nc5 {[%clk 0:00:17]}  Nd6 {[%clk 0:00:16]} 36. Bg6+ {[%clk 0:00:13]}  Kd8 {[%clk 0:00:15]} 37. Rxg7 {[%clk 0:00:13]}  Rxg2 {[%clk 0:00:14]} 38. Kd4 {[%clk 0:00:13]}  Rd2+ {[%clk 0:00:13]} 39. Ke5 {[%clk 0:00:13]}  Nc4+ {[%clk 0:00:12]} 40. Kf6 {[%clk 0:00:12]}  Rf2+ {[%clk 0:00:13]} 41. Bf5 {[%clk 0:00:09]}  Bxf5 {[%clk 0:00:12]} 42. g6 {[%clk 0:00:09]}  Bb1+ {[%clk 0:00:11]} 43. Kg5 {[%clk 0:00:09]}  Rf5+ {[%clk 0:00:10]} 44. Kh6 {[%clk 0:00:10]}  a5 {[%clk 0:00:09]} 45. Rf7 {[%clk 0:00:09]}  Rxf7 {[%clk 0:00:07]} 46. gxf7 {[%clk 0:00:09]}  Ke7 {[%clk 0:00:07]} 47. Kg7 {[%clk 0:00:10]}  axb4 {[%clk 0:00:07]} 48. f8=Q# {[%clk 0:00:10]} 1-0


[Site "https://www.chess.com"]

[Event "Titled Tuesday Blitz May 2 Late 2023"]
[White "Colpe, Malte"]
[Black "Dias, Joao Batista"]
[WhiteFideId "24623075"]
[BlackFideId "2108240"]
[WhiteElo "2289"]
[BlackElo "1907"]
[Result "1-0"]
[Round "02"]
[TimeControl "180+2"]
[Date "2023.05.02"]
[WhiteClock "0:01:04"]
[BlackClock "0:01:51"]

1. c4 {[%clk 0:02:58]}  c5 {[%clk 0:02:59]} 2. Nf3 {[%clk 0:02:58]}  Nf6 {[%clk 0:02:59]} 3. Nc3 {[%clk 0:02:58]}  Nc6 {[%clk 0:02:59]} 4. e3 {[%clk 0:02:58]}  g6 {[%clk 0:03:00]} 5. d4 {[%clk 0:02:58]}  b6 {[%clk 0:02:59]} 6. d5 {[%clk 0:02:58]}  Nb8 {[%clk 0:02:58]} 7. e4 {[%clk 0:02:58]}  d6 {[%clk 0:02:59]} 8. h3 {[%clk 0:02:58]}  Nbd7 {[%clk 0:02:57]} 9. Bd3 {[%clk 0:02:58]}  a6 {[%clk 0:02:57]} 10. O-O {[%clk 0:02:58]}  Ne5 {[%clk 0:02:57]} 11. Nxe5 {[%clk 0:02:57]}  dxe5 {[%clk 0:02:58]} 12. f4 {[%clk 0:02:56]}  exf4 {[%clk 0:02:58]} 13. Bxf4 {[%clk 0:02:57]}  Bg7 {[%clk 0:02:58]} 14. e5 {[%clk 0:02:54]}  Nh5 {[%clk 0:02:53]} 15. Bh2 {[%clk 0:02:55]}  Bh6 {[%clk 0:02:52]} 16. Qe2 {[%clk 0:02:46]}  Ng7 {[%clk 0:02:49]} 17. g4 {[%clk 0:02:34]}  Bg5 {[%clk 0:02:45]} 18. Ne4 {[%clk 0:02:32]}  Bh4 {[%clk 0:02:41]} 19. d6 {[%clk 0:02:17]}  O-O {[%clk 0:02:38]} 20. Rad1 {[%clk 0:01:59]}  Be6 {[%clk 0:02:36]} 21. Qe3 {[%clk 0:01:49]}  exd6 {[%clk 0:02:34]} 22. Nxd6 {[%clk 0:01:43]}  Qe7 {[%clk 0:02:28]} 23. Bf4 {[%clk 0:01:21]}  Rad8 {[%clk 0:02:16]} 24. g5 {[%clk 0:01:16]}  Nh5 {[%clk 0:02:05]} 25. Ne4 {[%clk 0:01:15]}  Nxf4 {[%clk 0:02:03]} 26. Qxf4 {[%clk 0:01:08]}  Bxh3 {[%clk 0:01:58]} 27. Qxh4 {[%clk 0:01:07]}  Bxf1 {[%clk 0:01:57]} 28. Nf6+ {[%clk 0:01:07]}  Qxf6 {[%clk 0:01:57]} 29. gxf6 {[%clk 0:01:05]}  h6 {[%clk 0:01:51]} 30. Qxh6 {[%clk 0:01:04]} 1-0


[Site "https://www.chess.com"]

[Event "Titled Tuesday Blitz May 2 Late 2023"]
[White "Rottenwohrer Suarez, Juan"]
[Black "Joubert, Dantelle"]
[WhiteFideId "32068182"]
[BlackFideId "14310813"]
[WhiteElo "2174"]
[BlackElo "1507"]
[Result "1-0"]
[Round "02"]
[TimeControl "180+2"]
[Date "2023.05.02"]
[WhiteClock "0:01:08"]
[BlackClock "0:01:13"]

1. d4 {[%clk 0:03:00]}  f5 {[%clk 0:02:59]} 2. Bg5 {[%clk 0:02:54]}  Nf6 {[%clk 0:02:52]} 3. Bxf6 {[%clk 0:02:49]}  exf6 {[%clk 0:02:51]} 4. Nc3 {[%clk 0:02:48]}  Bb4 {[%clk 0:02:41]} 5. Qd3 {[%clk 0:02:39]}  Bxc3+ {[%clk 0:02:26]} 6. Qxc3 {[%clk 0:02:38]}  O-O {[%clk 0:02:25]} 7. e3 {[%clk 0:02:36]}  f4 {[%clk 0:02:17]} 8. exf4 {[%clk 0:02:15]}  d5 {[%clk 0:02:13]} 9. Bd3 {[%clk 0:02:00]}  Qd6 {[%clk 0:02:11]} 10. Ne2 {[%clk 0:02:00]}  Bg4 {[%clk 0:02:08]} 11. f3 {[%clk 0:01:58]}  Bd7 {[%clk 0:01:57]} 12. O-O {[%clk 0:01:58]}  Nc6 {[%clk 0:01:45]} 13. a3 {[%clk 0:01:50]}  Ne7 {[%clk 0:01:44]} 14. Qb4 {[%clk 0:01:44]}  Qe6 {[%clk 0:01:34]} 15. Rfe1 {[%clk 0:01:38]}  b6 {[%clk 0:01:14]} 16. Ng3 {[%clk 0:01:13]}  c5 {[%clk 0:01:13]} 17. Rxe6 {[%clk 0:01:08]} 1-0


[Site "https://www.chess.com"]

[Event "Titled Tuesday Blitz May 2 Late 2023"]
[White "Eisa Mohmood, Alkhoori"]
[Black "Nunez V, Gustavo Eduardo"]
[WhiteFideId "9316116"]
[BlackFideId "4403690"]
[WhiteElo "1310"]
[BlackElo "2228"]
[Result "0-1"]
[Round "02"]
[TimeControl "180+2"]
[Date "2023.05.02"]
[WhiteClock "0:01:49"]
[BlackClock "0:01:17"]

1. e4 {[%clk 0:03:00]}  c5 {[%clk 0:02:31]} 2. Nf3 {[%clk 0:02:58]}  Nc6 {[%clk 0:02:31]} 3. d4 {[%clk 0:02:59]}  cxd4 {[%clk 0:02:31]} 4. Nxd4 {[%clk 0:03:00]}  e5 {[%clk 0:02:28]} 5. Nb5 {[%clk 0:02:58]}  a6 {[%clk 0:02:25]} 6. Nd6+ {[%clk 0:02:58]}  Bxd6 {[%clk 0:02:25]} 7. Qxd6 {[%clk 0:02:59]}  Qf6 {[%clk 0:02:26]} 8. Qd2 {[%clk 0:02:59]}  Nge7 {[%clk 0:02:26]} 9. Nc3 {[%clk 0:02:59]}  O-O {[%clk 0:02:26]} 10. Be2 {[%clk 0:02:51]}  d6 {[%clk 0:02:25]} 11. O-O {[%clk 0:02:51]}  Be6 {[%clk 0:02:21]} 12. Qxd6 {[%clk 0:02:38]}  Rad8 {[%clk 0:02:13]} 13. Qc5 {[%clk 0:02:38]}  Nd4 {[%clk 0:02:05]} 14. Bd3 {[%clk 0:02:35]}  Rc8 {[%clk 0:01:50]} 15. Qb6 {[%clk 0:02:35]}  Rfd8 {[%clk 0:01:33]} 16. f4 {[%clk 0:02:34]}  Rd7 {[%clk 0:01:26]} 17. f5 {[%clk 0:02:29]}  Bc4 {[%clk 0:01:26]} 18. Qxf6 {[%clk 0:02:29]}  gxf6 {[%clk 0:01:26]} 19. Be3 {[%clk 0:02:15]}  Bxd3 {[%clk 0:01:23]} 20. cxd3 {[%clk 0:02:16]}  Nc2 {[%clk 0:01:23]} 21. Rac1 {[%clk 0:01:51]}  Nxe3 {[%clk 0:01:22]} 22. Nd5 {[%clk 0:01:52]}  N3xd5 {[%clk 0:01:18]} 23. exd5 {[%clk 0:01:50]}  Rxc1 {[%clk 0:01:18]} 24. d6 {[%clk 0:01:48]}  Rxf1+ {[%clk 0:01:16]} 25. Kxf1 {[%clk 0:01:49]}  Nxf5 {[%clk 0:01:17]} 0-1


[Site "https://www.chess.com"]